[Event "Berlin Championship 2024"]
[Site "Berlin"]
[Date "2024.04.03"]
[Round "5.7"]
[White "Eilenberg, Jonas"]
[Black "Nogly, Christoph"]
[Result "1/2-1/2"]
[ECO "D61"]
[WhiteElo "2303"]
[BlackElo "2228"]
[Annotator "RC"]
[PlyCount "59"]
[EventDate "2024.03.30"]
[EventType "swiss"]
[EventCountry "GER"]
[SourceTitle "playchess.com"]
[Source "ChessBase"]
[SourceQuality "1"]
[TimeControl "40/5400+30:1800+30"]

1. d4 {[%emt 0:00:04]} d5 {[%emt 0:00:04]} 2. c4 {[%emt 0:00:06]} e6 {[%emt 0:00:03]} 3. Nc3 {[%emt 0:00:09]} Nf6 {[%emt 0:00:05]} 4. Bg5 {[%emt 0:00:07]} Be7 {[%emt 0:00:57]} 5. Nf3 {[%emt 0:00:14]} Nbd7 {[%emt 0:00:27]} 6. e3 {[%emt 0:00:12]} h6 {[%emt 0:00:20]} 7. Bh4 {[%emt 0:00:08]} O-O {[%emt 0:00:17]} 8. Qc2 {[%emt 0:00:13]} c6 {[%emt 0:01:25]} 9. Nd2 {[%emt 0:01:23]} a6 {[%emt 0:03:05]} 10. cxd5 {[%emt 0:00:15]} exd5 {[%emt 0:04:42]} 11. Bd3 {[%emt 0:00:14]} Re8 {[%emt 0:01:39]} 12. O-O {[%emt 0:01:00]} Nh5 {[%emt 0:10:59]} 13. Bxe7 {[%emt 0:00:48]} Qxe7 {[%emt 0:00:02]} 14. Rfe1 {[%emt 0:01:09]} Nf8 {[%emt 0:05:37]} 15. Rad1 {[%emt 0:07:22]} Ne6 {[%emt 0:06:31]} 16. Nf1 {[%emt 0:01:53]} Bd7 {[%emt 0:09:30]} 17. a3 {[%emt 0:02:42]} Rad8 {[%emt 0:01:30]} 18. Ng3 {[%emt 0:03:28]} Nxg3 {[%emt 0:00:16]} 19. hxg3 {[%emt 0:00:05]} Bc8 {[%emt 0:06:56]} 20. b4 {[%emt 0:00:41]} h5 {[%emt 0:01:22]} 21. f3 {[%emt 0:14:43]} Qf6 {[%emt 0:05:23]} 22. a4 {[%emt 0:05:33]} b5 {[%emt 0:07:48]} 23. Ne2 {[%emt 0:03:50]} Rd6 {[%emt 0:00:16]} 24. axb5 {[%emt 0:05:33]} axb5 {[%emt 0:00:10]} 25. Nc1 {[%emt 0:03:01]} g6 {[%emt 0:02:53]} 26. Nb3 {[%emt 0:00:29]} Kg7 {[%emt 0:00:05]} 27. Qf2 {[%emt 0:02:26]} Rh8 {[%emt 0:01:50]} 28. Ra1 {[%emt 0:01:31]} h4 {[%emt 0:04:41]} 29. gxh4 {[%emt 0:01:04]} Rxh4 {[%emt 0:00:15]} 30. Qg3 {[%emt 0:11:23]} 1/2-1/2

[Event "Berlin Championship 2024"]
[Site "Berlin"]
[Date "2024.04.03"]
[Round "5.8"]
[White "Dubessay, Bastien"]
[Black "Foerster, Jonas"]
[Result "0-1"]
[ECO "B11"]
[WhiteElo "2255"]
[BlackElo "2238"]
[Annotator "RC"]
[PlyCount "144"]
[EventDate "2024.03.30"]
[EventType "swiss"]
[EventCountry "GER"]
[SourceTitle "playchess.com"]
[Source "ChessBase"]
[SourceQuality "1"]
[TimeControl "40/5400+30:1800+30"]

1. e4 {[%emt 0:00:04]} c6 {[%emt 0:00:10]} 2. Nc3 {[%emt 0:00:49]} d5 {[%emt 0:02:00]} 3. Nf3 {[%emt 0:00:26]} dxe4 {[%emt 0:01:57]} 4. Nxe4 {[%emt 0:00:08]} Nf6 {[%emt 0:00:07]} 5. Qe2 {[%emt 0:00:38]} Nxe4 {[%emt 0:00:11]} 6. Qxe4 {[%emt 0:00:06]} Nd7 {[%emt 0:01:07]} 7. Bc4 {[%emt 0:00:43]} Nf6 {[%emt 0:00:28]} 8. Ne5 {[%emt 0:00:09]} e6 {[%emt 0:00:05]} 9. Qe2 {[%emt 0:00:05]} b5 {[%emt 0:04:34]} 10. Bd3 {[%emt 0:00:20]} Qc7 {[%emt 0:03:10]} 11. b3 {[%emt 0:00:24]} Bb7 {[%emt 0:15:49]} 12. Bb2 {[%emt 0:01:10]} Bd6 {[%emt 0:10:05]} 13. O-O {[%emt 0:01:41]} h5 {[%emt 0:14:10]} 14. h3 {[%emt 0:13:59]} Nd5 {[%emt 0:13:19]} 15. f4 {[%emt 0:09:20]} O-O-O {[%emt 0:04:46]} 16. c4 {[%emt 0:15:54]} bxc4 {[%emt 0:07:31]} 17. Bxc4 {[%emt 0:03:33]} f6 {[%emt 0:00:35]} 18. Bxd5 {[%emt 0:17:51]} exd5 {[%emt 0:00:13]} 19. Ng6 {[%emt 0:00:06]} Rh6 {[%emt 0:06:27]} 20. f5 {[%emt 0:03:02]} Kb8 {[%emt 0:00:03]} 21. d4 {[%emt 0:02:32]} Bc8 {[%emt 0:01:08]} 22. Qf3 {[%emt 0:06:32]} Qb6 {[%emt 0:01:02]} 23. Rad1 {[%emt 0:06:05]} Ka8 {[%emt 0:01:18]} 24. Bc1 {[%emt 0:00:45]} Rh7 {[%emt 0:00:04]} 25. Bf4 {[%emt 0:03:39]} Bb4 {[%emt 0:05:07]} 26. Qg3 {[%emt 0:07:11]} Re8 {[%emt 0:00:03]} 27. Bc7 {[%emt 0:00:36]} Qb7 {[%emt 0:00:28]} 28. Bd6 {[%emt 0:02:23]} h4 {[%emt 0:00:08]} 29. Qh2 {[%emt 0:00:04]} Rh5 {[%emt 0:00:32]} 30. Bxb4 {[%emt 0:00:14]} Qxb4 {[%emt 0:00:04]} 31. Qc7 {[%emt 0:00:08]} Qb7 {[%emt 0:00:10]} 32. Qxb7+ {[%emt 0:01:16]} Kxb7 {[%emt 0:00:09]} 33. Rde1 {[%emt 0:00:04]} Rxe1 {[%emt 0:02:19]} 34. Rxe1 {[%emt 0:00:01]} Bxf5 {[%emt 0:00:09]} 35. Nf4 {[%emt 0:00:22]} Rg5 {[%emt 0:00:16]} 36. Re7+ {[%emt 0:01:38]} Kb6 {[%emt 0:00:05]} 37. Re8 {[%emt 0:00:05]} Rg3 {[%emt 0:00:35]} 38. Nh5 {[%emt 0:03:12]} Rg5 {[%emt 0:00:12]} 39. Nf4 {[%emt 0:00:13]} Be4 {[%emt 0:00:28]} 40. Rb8+ {[%emt 0:00:16]} Kc7 {[%emt 0:02:28]} 41. Rg8 {[%emt 0:04:35]} Kd6 {[%emt 0:15:14]} 42. Rd8+ {[%emt 0:00:54]} Ke7 {[%emt 0:00:19]} 43. Ra8 {[%emt 0:00:40]} Rg3 {[%emt 0:00:32]} 44. Rxa7+ {[%emt 0:00:08]} Kd6 {[%emt 0:00:26]} 45. a4 {[%emt 0:02:09]} g5 {[%emt 0:02:37]} 46. Nh5 {[%emt 0:00:05]} Rxg2+ {[%emt 0:01:11]} 47. Kf1 {[%emt 0:00:02]} Rb2 {[%emt 0:02:15]} 48. Nxf6 {[%emt 0:00:47]} Bg2+ {[%emt 0:06:14]} 49. Kg1 {[%emt 0:00:36]} Bxh3 {[%emt 0:01:00]} 50. Rg7 {[%emt 0:03:26]} Ke6 {[%emt 0:04:52]} 51. Nd7 {[%emt 0:02:47]} Kf5 {[%emt 0:00:56]} 52. Rf7+ {[%emt 0:00:52]} Ke4 {[%emt 0:00:44]} 53. Ne5 {[%emt 0:00:31]} c5 {[%emt 0:01:02]} 54. Re7 {[%emt 0:05:18]} Kxd4 {[%emt 0:00:41]} 55. Nf3+ {[%emt 0:00:57]} Kc3 {[%emt 0:00:32]} 56. Re3+ {[%emt 0:00:09]} Kb4 {[%emt 0:00:03]} 57. Ne5 {[%emt 0:00:35]} Bf5 {[%emt 0:02:34]} 58. Nc6+ {[%emt 0:02:29]} Ka3 {[%emt 0:00:04]} 59. a5 {[%emt 0:00:05]} Rb1+ {[%emt 0:00:59]} 60. Kf2 {[%emt 0:00:20]} d4 {[%emt 0:00:16]} 61. Re5 {[%emt 0:00:39]} Rb2+ {[%emt 0:00:21]} 62. Kg1 {[%emt 0:00:16]} Rb1+ {[%emt 0:00:31]} 63. Kf2 {[%emt 0:00:04]} Rb2+ {[%emt 0:00:04]} 64. Kg1 {[%emt 0:00:01]} Bd3 {[%emt 0:00:37]} 65. Rxc5 {[%emt 0:01:15]} Rb1+ {[%emt 0:00:03]} 66. Kf2 {[%emt 0:00:54]} g4 {[%emt 0:00:35]} 67. a6 {[%emt 0:01:49]} g3+ {[%emt 0:00:13]} 68. Kf3 {[%emt 0:00:14]} Rf1+ {[%emt 0:01:28]} 69. Kg2 {[%emt 0:00:05]} Rf2+ {[%emt 0:00:08]} 70. Kh3 {[%emt 0:00:45]} Rh2+ {[%emt 0:00:11]} 71. Kg4 {[%emt 0:00:04]} g2 {[%emt 0:00:23]} 72. Rc1 {[%emt 0:00:04]} Bf1 {[%emt 0:00:16]} 0-1

[Event "Berlin Championship 2024"]
[Site "Berlin"]
[Date "2024.04.04"]
[Round "6.1"]
[White "Lagunow, Raphael"]
[Black "Baldauf, Marco"]
[Result "1/2-1/2"]
[ECO "E04"]
[WhiteElo "2421"]
[BlackElo "2481"]
[Annotator "TA"]
[PlyCount "22"]
[EventDate "2024.03.30"]
[EventType "swiss"]
[EventCountry "GER"]
[SourceTitle "playchess.com"]
[Source "ChessBase"]
[SourceQuality "1"]
[TimeControl "40/5400+30:1800+30"]

{[%evp 12,22,48,51,52,47,43,59,45,50,52,43,49]} 1. d4 {[%emt 0:01:46]} Nf6 {[%emt 0:01:32]} 2. Nf3 {[%emt 0:00:10]} d5 {[%emt 0:00:04]} 3. c4 {[%emt 0:00:05]} e6 {[%emt 0:00:17]} 4. g3 {[%emt 0:00:06]} dxc4 {[%emt 0:00:19]} 5. Bg2 {[%emt 0:00:08]} Nbd7 {[%emt 0:00:08]} 6. O-O {[%emt 0:08:37]} Rb8 {[%emt 0:00:11]} 7. a4 $1 {[%emt 0:00:07] White is slightly better.} a6 {[%emt 0:00:14]} 8. a5 {[%emt 0:00:06]} Bd6 {[%emt 0:01:33]} 9. Nbd2 {[%emt 0:04:50]} b5 {[%emt 0:00:23] [#] Threatens to win with ...Bb7.} 10. axb6 {[%emt 0:00:13]} Nxb6 {[%emt 0:00:06]} 11. Ne5 {[%emt 1:19:52]} Bxe5 {[%emt 0:01:14] Black did not feel at home in the position after the opening.   Weighted Error Value: White=0.02 (flawless) /Black=0.00 (flawless) .  OK:         	White=1     	Black=3      Best:        	White=1     	---} 1/2-1/2

[Event "Berlin Championship 2024"]
[Site "Berlin"]
[Date "2024.04.04"]
[Round "6.2"]
[White "Jahnz, Laurin"]
[Black "Polzin, Rainer"]
[Result "1/2-1/2"]
[ECO "B06"]
[WhiteElo "2051"]
[BlackElo "2401"]
[Annotator "TA"]
[PlyCount "45"]
[EventDate "2024.03.30"]
[EventType "swiss"]
[EventCountry "GER"]
[SourceTitle "playchess.com"]
[Source "ChessBase"]
[SourceQuality "1"]
[TimeControl "40/5400+30:1800+30"]

{[%evp 12,45,31,56,73,56,107,85,89,75,96,85,79,94,96,108,122,119,118,112,109,110,129,125,124,65,61,88,90,51,93,26,25,0,0,0]} 1. e4 {[%emt 0:00:01]} g6 {[%emt 0:00:30]} 2. d4 {[%emt 0:00:03]} Bg7 {[%emt 0:00:04]} 3. Nf3 {[%emt 0:00:11]} d6 {[%emt 0:18:48]} 4. Nc3 {[%emt 0:00:05]} a6 {[%emt 0:03:37]} 5. Be2 {[%emt 0:00:05]} b5 {[%emt 0:09:13]} 6. O-O {[%emt 0:00:20]} Bb7 {[%emt 0:02:17]} 7. Re1 {[%emt 0:00:07]} e6 {[%emt 0:10:50]} 8. a4 {[%emt 0:05:36]} bxa4 {[%emt 0:09:59]} (8... b4 $14) 9. Bg5 {[%emt 0:13:29]} Ne7 {[%emt 0:01:06] White is better.} 10. Qd2 {[%emt 0:02:31][%cal Od4d5]} h6 {[%emt 0:01:10]} 11. Be3 {[%emt 0:00:05] White is much more active.} Nd7 {[%emt 0:00:33][%cal Bb8d7,Bd7f6,Bf6e4][%mdl 32]} 12. Rxa4 {[%emt 0:05:36]} Nf6 {[%emt 0:20:39]} 13. Bd3 {[%emt 0:03:57]} d5 {[%emt 0:09:25]} 14. e5 {[%emt 0:01:17]} Ne4 {[%emt 0:00:48]} 15. Qe2 {[%emt 0:00:25]} Nxc3 {[%emt 0:01:36]} 16. bxc3 {[%emt 0:00:03]} O-O {[%emt 0:02:35]} 17. Rea1 {[%emt 0:04:10]} Nf5 {[%emt 0:00:56]} 18. Bxa6 {[%emt 0:09:02]} (18. Bc1 $16) 18... Bxa6 {[%emt 0:00:08]} 19. Rxa6 {[%emt 0:00:05]} Rxa6 {[%emt 0:00:02]} 20. Rxa6 {[%emt 0:00:09]} Nxe3 {[%emt 0:00:42]} 21. Qxe3 {[%emt 0:07:00]} (21. fxe3 $16 c5 22. dxc5) 21... Qb8 $11 {[%emt 0:00:14]} 22. Qe2 {[%emt 0:08:00]} Rc8 {[%emt 0:01:39]} 23. Ra5 {[%emt 0:06:41] Weighted Error Value: White=0.18 (very precise) /Black=0.09 (flawless) .  Mistake:       	White=2     	Black=1      Inaccurate:     	White=1     	Black=1      OK:         	White=5     	Black=6} 1/2-1/2

[Event "Berlin Championship 2024"]
[Site "Berlin"]
[Date "2024.04.04"]
[Round "6.3"]
[White "Schmidek, Emil"]
[Black "Poltorak, Sebastian"]
[Result "0-1"]
[ECO "E42"]
[WhiteElo "2439"]
[BlackElo "2392"]
[Annotator "RC"]
[PlyCount "68"]
[EventDate "2024.03.30"]
[EventType "swiss"]
[EventCountry "GER"]
[SourceTitle "playchess.com"]
[Source "ChessBase"]
[SourceQuality "1"]
[TimeControl "40/5400+30:1800+30"]

1. d4 {[%emt 0:00:03]} Nf6 {[%emt 0:00:11]} 2. c4 {[%emt 0:00:05]} e6 {[%emt 0:00:06]} 3. Nc3 {[%emt 0:00:08]} Bb4 {[%emt 0:00:06]} 4. e3 {[%emt 0:00:08]} c5 {[%emt 0:00:07]} 5. Nge2 {[%emt 0:01:39]} cxd4 {[%emt 0:00:33]} 6. exd4 {[%emt 0:00:33]} O-O {[%emt 0:00:08]} 7. a3 {[%emt 0:02:50]} Be7 {[%emt 0:00:06]} 8. d5 {[%emt 0:01:42]} exd5 {[%emt 0:00:47]} 9. cxd5 {[%emt 0:00:11]} Bc5 {[%emt 0:00:08]} 10. b4 {[%emt 0:35:33]} Bd6 {[%emt 0:01:18]} 11. Bb2 {[%emt 0:09:18]} Re8 {[%emt 0:06:38]} 12. g3 {[%emt 0:01:11]} a5 {[%emt 0:02:02]} 13. b5 {[%emt 0:14:58]} Be5 {[%emt 0:06:08]} 14. Bg2 {[%emt 0:01:28]} d6 {[%emt 0:06:06]} 15. O-O {[%emt 0:00:40]} Bg4 {[%emt 0:14:03]} 16. Qd2 {[%emt 0:03:25]} Qb6 {[%emt 0:09:58]} 17. Nf4 {[%emt 0:03:37]} Nbd7 {[%emt 0:01:28]} 18. Nd3 {[%emt 0:08:58]} Bxc3 {[%emt 0:00:23]} 19. Bxc3 {[%emt 0:01:38]} Qxb5 {[%emt 0:01:57]} 20. Rab1 {[%emt 0:05:00]} Qa6 {[%emt 0:03:43]} 21. Nf4 {[%emt 0:01:08]} Bf5 {[%emt 0:01:22]} 22. Rbe1 {[%emt 0:01:20]} b6 {[%emt 0:05:06]} 23. Qb2 {[%emt 0:00:31]} Rac8 {[%emt 0:03:34]} 24. h3 {[%emt 0:02:55]} h6 {[%emt 0:02:18]} 25. Bf3 {[%emt 0:01:31]} Bd3 {[%emt 0:01:12]} 26. Rxe8+ {[%emt 0:00:35]} Rxe8 {[%emt 0:00:04]} 27. Rd1 {[%emt 0:00:12]} Bc4 {[%emt 0:02:11]} 28. Nh5 {[%emt 0:01:04]} Be2 {[%emt 0:01:10]} 29. Nxf6+ {[%emt 0:01:56]} Nxf6 {[%emt 0:00:56]} 30. Bxe2 {[%emt 0:00:19]} Rxe2 {[%emt 0:00:50]} 31. Qa1 {[%emt 0:00:32]} Ne4 {[%emt 0:05:42]} 32. Bxg7 {[%emt 0:00:24]} Rxf2 {[%emt 0:01:11]} 33. Re1 {[%emt 0:00:14]} Qd3 {[%emt 0:00:08]} 34. Be5 {[%emt 0:01:09]} Qf3 {[%emt 0:00:04]} 0-1

[Event "Berlin Championship 2024"]
[Site "Berlin"]
[Date "2024.04.04"]
[Round "6.4"]
[White "Florstedt, Johannes"]
[Black "Hesse, Henrik"]
[Result "1/2-1/2"]
[ECO "C43"]
[WhiteElo "2348"]
[BlackElo "2312"]
[Annotator "RC"]
[PlyCount "84"]
[EventDate "2024.03.30"]
[EventType "swiss"]
[EventCountry "GER"]
[SourceTitle "playchess.com"]
[Source "ChessBase"]
[SourceQuality "1"]
[TimeControl "40/5400+30:1800+30"]

1. e4 {[%emt 0:08:25]} e5 {[%emt 0:00:41]} 2. Nf3 {[%emt 0:00:12]} Nf6 {[%emt 0:00:06]} 3. d4 {[%emt 0:00:24]} Nxe4 {[%emt 0:00:11]} 4. Bd3 {[%emt 0:00:21]} d5 {[%emt 0:00:18]} 5. Nxe5 {[%emt 0:00:19]} Nd7 {[%emt 0:00:17]} 6. Nc3 {[%emt 0:00:54]} Nxc3 {[%emt 0:07:32]} 7. bxc3 {[%emt 0:01:52]} Nxe5 {[%emt 0:00:06]} 8. dxe5 {[%emt 0:00:05]} c5 {[%emt 0:07:43]} 9. O-O {[%emt 0:04:16]} c4 {[%emt 0:09:20]} 10. Be2 {[%emt 0:00:46]} Bc5 {[%emt 0:00:09]} 11. Rb1 {[%emt 0:00:45]} b6 {[%emt 0:08:58]} 12. Bg4 {[%emt 0:04:45]} O-O {[%emt 0:02:21]} 13. Bxc8 {[%emt 0:04:23]} Rxc8 {[%emt 0:06:16]} 14. Qg4 {[%emt 0:06:34]} Qe7 {[%emt 0:01:03]} 15. Bf4 {[%emt 0:06:17]} Qe6 {[%emt 0:08:21]} 16. h3 {[%emt 0:03:28]} Rcd8 {[%emt 0:19:24]} 17. Rbd1 {[%emt 0:16:49]} d4 {[%emt 0:17:33]} 18. cxd4 {[%emt 0:04:35]} Bxd4 {[%emt 0:02:22]} 19. Bg5 {[%emt 0:09:35]} Qxg4 {[%emt 0:00:07]} 20. hxg4 {[%emt 0:00:04]} f6 {[%emt 0:00:15]} 21. exf6 {[%emt 0:01:29]} Bxf6 {[%emt 0:02:56]} 22. Be3 {[%emt 0:00:19]} Rxd1 {[%emt 0:00:36]} 23. Rxd1 {[%emt 0:00:06]} Rd8 {[%emt 0:00:05]} 24. Rb1 {[%emt 0:01:34]} Rd5 {[%emt 0:03:16]} 25. Rb4 {[%emt 0:00:31]} b5 {[%emt 0:00:10]} 26. Bxa7 {[%emt 0:01:20]} Bc3 {[%emt 0:00:19]} 27. Rb1 {[%emt 0:00:09]} b4 {[%emt 0:00:07]} 28. Bb6 {[%emt 0:01:55]} Kf7 {[%emt 0:02:35]} 29. Kf1 {[%emt 0:04:58]} Ke6 {[%emt 0:00:07]} 30. Ke2 {[%emt 0:00:57]} Re5+ {[%emt 0:01:29]} 31. Be3 {[%emt 0:05:40]} Ra5 {[%emt 0:00:04]} 32. Bd2 {[%emt 0:00:09]} Re5+ {[%emt 0:01:07]} 33. Be3 {[%emt 0:00:04]} Ra5 {[%emt 0:00:21]} 34. Bd2 {[%emt 0:00:04]} Bxd2 {[%emt 0:00:20]} 35. Kxd2 {[%emt 0:00:10]} Ra4 {[%emt 0:00:01]} 36. Re1+ {[%emt 0:02:49]} Kd5 {[%emt 0:00:04]} 37. Re8 {[%emt 0:02:09]} Rxa2 {[%emt 0:00:05]} 38. Rd8+ {[%emt 0:00:08]} Ke5 {[%emt 0:01:25]} 39. Re8+ {[%emt 0:00:36]} Kd6 {[%emt 0:00:41]} 40. Rd8+ {[%emt 0:00:40]} Ke5 {[%emt 0:00:26]} 41. Re8+ {[%emt 0:32:23]} Kd6 {[%emt 0:24:42]} 42. Rd8+ {[%emt 0:00:00]} Ke5 {[%emt 0:01:53]} 1/2-1/2

[Event "Berlin Championship 2024"]
[Site "Berlin"]
[Date "2024.04.04"]
[Round "6.5"]
[White "Thiede, Lars"]
[Black "Foerster, Jonas"]
[Result "0-1"]
[ECO "A07"]
[WhiteElo "2388"]
[BlackElo "2238"]
[Annotator "RC"]
[PlyCount "104"]
[EventDate "2024.03.30"]
[EventType "swiss"]
[EventCountry "GER"]
[SourceTitle "playchess.com"]
[Source "ChessBase"]
[SourceQuality "1"]
[TimeControl "40/5400+30:1800+30"]

1. Nf3 {[%emt 0:00:03]} Nf6 {[%emt 0:08:00]} 2. g3 {[%emt 0:02:12]} d5 {[%emt 0:02:10]} 3. Bg2 {[%emt 0:01:18]} c6 {[%emt 0:03:24]} 4. O-O {[%emt 0:05:09]} Bg4 {[%emt 0:03:45]} 5. b3 {[%emt 0:03:10]} Nbd7 {[%emt 0:02:44]} 6. Bb2 {[%emt 0:00:24]} e6 {[%emt 0:01:29]} 7. d3 {[%emt 0:03:23]} Be7 {[%emt 0:03:00]} 8. e4 {[%emt 0:08:23]} dxe4 {[%emt 0:32:30]} 9. dxe4 {[%emt 0:02:03]} Nxe4 {[%emt 0:01:28]} 10. Bxg7 {[%emt 0:17:50]} Rg8 {[%emt 0:03:47]} 11. Bb2 {[%emt 0:03:40]} Ng5 {[%emt 0:12:01]} 12. Nbd2 {[%emt 0:03:37]} Qc7 {[%emt 0:01:31]} 13. Qe1 {[%emt 0:06:23]} Nxf3+ {[%emt 0:09:31]} 14. Nxf3 {[%emt 0:08:50]} O-O-O {[%emt 0:00:10]} 15. Qe3 {[%emt 0:05:22]} Bc5 {[%emt 0:00:43]} 16. Bd4 {[%emt 0:00:43]} Bxf3 {[%emt 0:02:28]} 17. Bxf3 {[%emt 0:03:39]} Bxd4 {[%emt 0:00:03]} 18. Qxd4 {[%emt 0:00:09]} Ne5 {[%emt 0:00:12]} 19. Qe3 {[%emt 0:00:10]} Rd2 {[%emt 0:06:06]} 20. Bg2 {[%emt 0:03:01]} Rgd8 {[%emt 0:00:33]} 21. Qxa7 {[%emt 0:01:17]} Rxc2 {[%emt 0:00:16]} 22. Rac1 {[%emt 0:00:43]} Rxc1 {[%emt 0:00:57]} 23. Rxc1 {[%emt 0:00:08]} Rd2 {[%emt 0:01:27]} 24. h3 {[%emt 0:08:16]} Qd6 {[%emt 0:01:11]} 25. Kh2 {[%emt 0:04:50]} Qd4 {[%emt 0:00:52]} 26. Qxd4 {[%emt 0:01:54]} Rxd4 {[%emt 0:00:02]} 27. f4 {[%emt 0:00:16]} Nd3 {[%emt 0:00:55]} 28. Rd1 {[%emt 0:00:20]} c5 {[%emt 0:00:12]} 29. Rd2 {[%emt 0:03:53]} Kc7 {[%emt 0:00:18]} 30. Bf1 {[%emt 0:01:20]} Nb4 {[%emt 0:00:21]} 31. Rf2 {[%emt 0:00:57]} Kd6 {[%emt 0:00:24]} 32. Bc4 {[%emt 0:00:37]} Nd5 {[%emt 0:00:25]} 33. Re2 {[%emt 0:00:34]} b5 {[%emt 0:01:02]} 34. Bxd5 {[%emt 0:00:58]} Rxd5 {[%emt 0:00:04]} 35. Rc2 {[%emt 0:00:49]} Rd3 {[%emt 0:00:21]} 36. h4 {[%emt 0:00:25]} h5 {[%emt 0:00:37]} 37. Kh3 {[%emt 0:00:06]} Kd5 {[%emt 0:00:13]} 38. Re2 {[%emt 0:01:24]} f6 {[%emt 0:00:09]} 39. Rb2 {[%emt 0:00:20]} Kd4 {[%emt 0:01:38]} 40. a4 {[%emt 0:00:34]} bxa4 {[%emt 0:00:10]} 41. bxa4 {[%emt 0:30:10]} c4 {[%emt 0:31:48]} 42. Rb6 {[%emt 0:00:00]} c3 {[%emt 0:00:00]} 43. Rc6 {[%emt 0:00:00]} Ke3 {[%emt 0:00:00]} 44. a5 {[%emt 0:00:00]} Kd2 {[%emt 0:00:00]} 45. a6 {[%emt 0:00:00]} Rd7 {[%emt 0:00:00]} 46. Rxe6 {[%emt 0:00:00]} f5 {[%emt 0:00:00]} 47. Re5 {[%emt 0:00:00]} c2 {[%emt 0:00:00]} 48. a7 {[%emt 0:00:00]} Rxa7 {[%emt 0:00:00]} 49. Rd5+ {[%emt 0:00:00]} Ke3 {[%emt 0:00:00]} 50. Rc5 {[%emt 0:00:00]} Kd3 {[%emt 0:00:00]} 51. Rd5+ {[%emt 0:00:00]} Kc4 {[%emt 0:00:00]} 52. Rd8 {[%emt 0:00:00]} Rc7 {[%emt 0:00:00]} 0-1

[Event "Berlin Championship 2024"]
[Site "Berlin"]
[Date "2024.04.04"]
[Round "6.6"]
[White "Lagunow, Alexander"]
[Black "Yatskar, Martin"]
[Result "1/2-1/2"]
[ECO "D02"]
[WhiteElo "2350"]
[BlackElo "2066"]
[Annotator "RC"]
[PlyCount "121"]
[EventDate "2024.03.30"]
[EventType "swiss"]
[EventCountry "GER"]
[SourceTitle "playchess.com"]
[Source "ChessBase"]
[SourceQuality "1"]
[TimeControl "40/5400+30:1800+30"]

1. Nf3 {[%emt 0:01:17]} d5 {[%emt 0:11:41]} 2. g3 {[%emt 0:02:54]} c5 {[%emt 0:00:08]} 3. Bg2 {[%emt 0:00:07]} Nc6 {[%emt 0:00:05]} 4. d4 {[%emt 0:00:29]} e6 {[%emt 0:00:37]} 5. O-O {[%emt 0:00:18]} cxd4 {[%emt 0:00:06]} 6. Nxd4 {[%emt 0:00:11]} Bc5 {[%emt 0:00:05]} 7. Nb3 {[%emt 0:00:24]} Bb6 {[%emt 0:00:08]} 8. c4 {[%emt 0:00:44]} Nge7 {[%emt 0:02:53]} 9. cxd5 {[%emt 0:04:47]} exd5 {[%emt 0:00:19]} 10. Nc3 {[%emt 0:01:44]} O-O {[%emt 0:01:10]} 11. Bf4 {[%emt 0:05:39]} Bg4 {[%emt 0:06:03]} 12. h3 {[%emt 0:02:39]} Be6 {[%emt 0:00:26]} 13. Na4 {[%emt 0:01:53]} d4 {[%emt 0:09:05]} 14. Nbc5 {[%emt 0:12:44]} Bxc5 {[%emt 0:00:32]} 15. Nxc5 {[%emt 0:00:03]} Bd5 {[%emt 0:03:02]} 16. Ne4 {[%emt 0:12:50]} Qb6 {[%emt 0:04:09]} 17. Qc1 {[%emt 0:10:35]} Rad8 {[%emt 0:02:23]} 18. b3 {[%emt 0:02:09]} Ng6 {[%emt 0:01:19]} 19. Bg5 {[%emt 0:07:31]} f6 {[%emt 0:00:35]} 20. Bd2 {[%emt 0:00:05]} Rfe8 {[%emt 0:00:11]} 21. Qc2 {[%emt 0:03:07]} Kh8 {[%emt 0:01:38]} 22. Rfe1 {[%emt 0:02:44]} Re7 {[%emt 0:03:13]} 23. Rad1 {[%emt 0:03:10]} Rde8 {[%emt 0:00:52]} 24. Nd6 {[%emt 0:04:59]} Bxg2 {[%emt 0:00:05]} 25. Kxg2 {[%emt 0:00:02]} Rd8 {[%emt 0:02:53]} 26. Nc4 {[%emt 0:04:02]} Qb5 {[%emt 0:01:36]} 27. Qd3 {[%emt 0:02:31]} Qd5+ {[%emt 0:03:46]} 28. Qf3 {[%emt 0:02:42]} Re4 {[%emt 0:00:13]} 29. Kg1 {[%emt 0:02:24]} b5 {[%emt 0:00:31]} 30. Nb2 {[%emt 0:00:04]} Nce5 {[%emt 0:00:41]} 31. Qg2 {[%emt 0:00:37]} Nc6 {[%emt 0:03:57]} 32. Nd3 {[%emt 0:00:50]} Rde8 {[%emt 0:00:48]} 33. Rc1 {[%emt 0:00:27]} Qd6 {[%emt 0:03:54]} 34. Nc5 {[%emt 0:02:28]} f5 {[%emt 0:01:23]} 35. Nxe4 {[%emt 0:01:31]} fxe4 {[%emt 0:00:05]} 36. Red1 {[%emt 0:00:11]} Qd5 {[%emt 0:00:56]} 37. Be3 {[%emt 0:01:26]} Nge5 {[%emt 0:03:06]} 38. Kh1 {[%emt 0:00:13]} Rd8 {[%emt 0:00:55]} 39. Rd2 {[%emt 0:01:17]} h6 {[%emt 0:00:40]} 40. Rcd1 {[%emt 0:00:28]} d3 {[%emt 0:00:42]} 41. exd3 {[%emt 0:15:52]} Nxd3 {[%emt 0:00:17]} 42. Rxd3 {[%emt 0:01:40]} exd3 {[%emt 0:00:07]} 43. Qxd5 {[%emt 0:00:02]} Rxd5 {[%emt 0:00:08]} 44. Kg2 {[%emt 0:00:02]} Nb4 {[%emt 0:05:27]} 45. Rd2 {[%emt 0:01:10]} Kg8 {[%emt 0:18:04]} 46. Bxa7 {[%emt 0:00:45]} Nxa2 {[%emt 0:00:24]} 47. Kf3 {[%emt 0:00:41]} Nc1 {[%emt 0:11:27]} 48. b4 {[%emt 0:00:58]} Kf7 {[%emt 0:02:12]} 49. Ke4 {[%emt 0:06:06]} Ke6 {[%emt 0:00:33]} 50. Bd4 {[%emt 0:00:45]} g6 {[%emt 0:00:43]} 51. f4 {[%emt 0:02:16]} h5 {[%emt 0:00:58]} 52. g4 {[%emt 0:00:47]} hxg4 {[%emt 0:03:22]} 53. hxg4 {[%emt 0:00:02]} Rd7 {[%emt 0:01:07]} 54. Be3 {[%emt 0:01:54]} Rd5 {[%emt 0:02:44]} 55. Rd1 {[%emt 0:00:45]} Ne2 {[%emt 0:00:29]} 56. Bd2 {[%emt 0:03:36]} Rd4+ {[%emt 0:00:12]} 57. Ke3 {[%emt 0:03:23]} Kd5 {[%emt 0:00:05]} 58. Rf1 {[%emt 0:00:16]} Ke6 {[%emt 0:15:02]} 59. Ra1 {[%emt 0:01:45]} Kd5 {[%emt 0:02:44]} 60. Ra8 {[%emt 0:01:40]} Re4+ {[%emt 0:00:13]} 61. Kxd3 {[%emt 0:00:33]} 1/2-1/2